Cogmind - Beta 17.1 @@@ ROGUE MODE // 2026.09.23 @ 19:15:35 Player: Lazz Result: Self-destructed Performance ------------- Evolutions (2) 1000 Regions Visited (6) 1200 Robots Destroyed (37) 185 Value Destroyed (1189) 1189 Prototype IDs (23) 460 Alien Tech Used (0) 0 Bonus (1256) 1256 TOTAL SCORE: 5290 Bonus ------- High Alert Combat Kills 133 Follower Combat Kills 123 Entered Garrisons 200 Used RIF Installer 500 Aligned with FarCom 300 Cogmind --------- Core Integrity 70/550 Matter 300/300 Energy 100/100 System Corruption 0% Temperature Cool (0) Movement Treading (160) Location -8/Garrison Parts ------- > --- POWER (1) -------- (None) > --- PROPULSION (4) --- Light Treads Light Treads Advanced Treads Advanced Treads > --- UTILITY (4) ------ Improved Heat Sink Large Storage Unit Relay Coupler [NC] (12) > --- WEAPON (2) ------- Gauss Rifle Gauss Rifle > --- INVENTORY (15) --- Light Ion Engine Light Treads Light Treads Compact Wheel Advanced Terrain Scan Processor Reactive Plating Hardlight Generator Medium Laser Small Laser Minigun Minigun Minigun Gauss Rifle Grenade Launcher Remote Datajack Peak State ------------ > --- POWER ------------ Micro Nuclear Core > --- PROPULSION ------- Light Treads Armored Treads Advanced Treads Advanced Treads > --- UTILITY ---------- Improved Heat Sink Improved Heat Sink Large Storage Unit Advanced Visual Processing Unit > --- WEAPON ----------- YOLO Cannon > --- INVENTORY -------- Light Ion Engine Light Nuclear Core Compact Wheel Advanced Terrain Scan Processor Particle Charger Relay Coupler [NC] Medium Laser Small Laser Assault Rifle Gauss Rifle Grenade Launcher Remote Datajack [Rating: 46] Favorites ----------- Power Light Ion Engine Engine Light Ion Engine Power Core Light Nuclear Core Propulsion Light Treads Treads Light Treads Utility Improved Heat Sink Device Improved Heat Sink Storage Large Storage Unit Processor Advanced Visual Processing Unit Hackware Relay Coupler [NC] Protection Light Armor Plating Weapon YOLO Cannon Energy Gun Medium Laser Energy Cannon YOLO Cannon Ballistic Gun Gauss Rifle Launcher Grenade Launcher Special Weapon Remote Datajack Build | -11 -10 -10 -10 -9 -8 -8 ------- Run | Yrd Mat Min Exi Min Mat Gar Slots Evolved 4 | . . . . . 4 . Power . | . . . . . . . Propulsion 2 | . . . . . 2 . Utility 2 | . . . . . 2 . Weapon . | . . . . . . . Parts Attached 30 | 7 . . 1 1 8 13 Power 3 | 1 . . . . . 2 Engine 1 | 1 . . . . . . Core 2 | . . . . . . 2 Reactor . | . . . . . . . Propulsion 10 | 2 . . . . 4 4 Treads 10 | 2 . . . . 4 4 Leg . | . . . . . . . Wheel . | . . . . . . . Hover . | . . . . . . . Flight . | . . . . . . . Utility 9 | 2 . . . . 4 3 Device 4 | 1 . . . . 1 2 Storage 2 | 1 . . . . 1 . Processor 1 | . . . . . 1 . Hackware 1 | . . . . . . 1 Protection 1 | . . . . . 1 . Artifact . | . . . . . . . Weapon 8 | 2 . . 1 1 . 4 Energy Gun 2 | 1 . . . . . 1 Energy Cannon 1 | . . . . 1 . . Ballistic Gun 3 | 1 . . . . . 2 Ballistic Cannon . | . . . . . . . Launcher 1 | . . . 1 . . . Special Weapon 1 | . . . . . . 1 Impact Weapon . | . . . . . . . Slashing Weapon . | . . . . . . . Piercing Weapon . | . . . . . . . Special Melee Weapon . | . . . . . . . Unidentified Prototypes . | . . . . . . . Parts Lost 10 | . . . 1 . 2 7 Power 2 | . . . . . . 2 Propulsion 1 | . . . . . . 1 Utility 5 | . . . . . 2 3 Weapon 2 | . . . 1 . . 1 Highest Loss Streak 4 | . . . 1 . 1 4 To Critical Strikes . | . . . . . . . Average Backups 7 | . 1 2 4 5 7 10 Power . | . . . . . . 1 Propulsion 1 | . . . . . 1 2 Utility 1 | . . . 1 1 1 2 Weapon 3 | . 1 2 3 4 4 4 Tool/Special . | . . . . . . . Unused Backups 9 | . . . . . . 9 Power . | . . . . . . . Propulsion 1 | . . . . . . 1 Utility 3 | . . . . . . 3 Weapon 5 | . . . . . . 5 Tool/Special . | . . . . . . . Average Slot Usage (%) 90 | . 100 100 99 84 74 93 Engine 8 | . 14 14 14 14 9 2 Core 2 | . . . . . . 6 Treads 32 | . 28 28 28 28 33 35 Device 14 | . 14 14 14 14 7 16 Storage 10 | . 14 14 14 14 9 9 Processor 1 | . . . . . 1 3 Hackware 2 | . . . . . . 4 Energy Gun 3 | . 14 14 14 . . . Energy Cannon 4 | . . . . 13 9 3 Ballistic Gun 6 | . 14 14 7 . . 8 Peak Build Rating 46 | 7 7 7 9 25 38 46 Average Rating 24 | 4 7 7 7 24 32 32 On Entrance 13 | . 7 7 7 8 25 37 Avg Prop Armor Cover (%) 13 | . . . . . . 13 Naked Turns . | . . . . . . . Heaviest Build 46 | 13 13 13 14 27 45 46 Greatest Support 84 | 40 40 40 40 40 82 84 Greatest Overweight (x) 1 | . . . . . . 1 Average Overweight (x) . | . . . . . . . Largest Inventory Capacity 15 | 8 8 8 8 8 15 15 Average Capacity 11 | 6 8 8 8 8 11 15 Most Carried 15 | 1 1 4 6 7 10 15 Average Carried 7 | . 1 2 4 5 7 10 Final Capacity 15 | 8 8 8 8 8 15 15 Final Carried 15 | 1 1 4 6 5 10 15 Class Distribution -------------------- 87% | Mutant 12% | Scavenger-Mutant Dominant Class ---------------- Mutant | -10/Materials Mutant | -10/Mines Mutant | -10/Exiles Mutant | -9/Mines Mutant | -8/Materials Mutant | -8/Garrison Resources | -11 -10 -10 -10 -9 -8 -8 ----------- Run | Yrd Mat Min Exi Min Mat Gar Matter Collected 751 | 232 . . . 71 100 348 Remotely . | . . . . . . . Salvage Created 1178 | 11 . . . 114 312 741 Parts 75 | 3 . . . 5 16 51 Haulers Intercepted . | . . . . . . . Recyclers Shooed . | . . . . . . . Parts Field Recycled . | . . . . . . . Retrieved Matter . | . . . . . . . Parts Self-Destructed . | . . . . . . . Prevented . | . . . . . . . Parts Restored . | . . . . . . . Kills | -11 -10 -10 -10 -9 -8 -8 ------- Run | Yrd Mat Min Exi Min Mat Gar Combat Hostiles Destroyed 31 | . . . . 3 8 20 Guns 16 | . . . . . . 16 Cannons 3 | . . . . 1 2 . AOE 11 | . . . . 1 6 4 Classes Destroyed 9 | 1 . . . 3 3 2 Worker 3 | . . . . 1 2 . Builder 1 | . . . . . 1 . Tunneler 1 | 1 . . . . . . Swarmer 7 | . . . . . . 7 Grunt 8 | . . . . 2 6 . Brawler 2 | . . . . 1 . 1 Duelist 1 | . . . . . 1 . Sentry 13 | . . . . . 2 11 Specialist 1 | . . . . . . 1 Best Kill Streak 5 | 1 . . . 4 5 5 Combat Bots Only 5 | . . . . 3 4 5 Max Kills in Single Turn 3 | 1 . . . 2 3 2 Gunslinging 1 | . . . . . . 1 Exploded 2 | . . . . 1 2 2 Melee . | . . . . . . . Uniques/NPCs Destroyed . | . . . . . . . Combat | -11 -10 -10 -10 -9 -8 -8 -------- Run | Yrd Mat Min Exi Min Mat Gar Hostile Shots Fired 198 | . . . 22 7 43 126 Missed 74 | . . . 7 1 15 51 Hits 124 | . . . 15 6 28 75 Melee 4 | . . . 2 . . 2 Projectile 120 | . . . 13 6 28 73 Critical Strikes 7 | . . . . . 3 4 Damage Taken 2093 | . . . 227 65 609 1192 Core 276 | . . . 46 10 31 189 Absorbed by Shields . | . . . . . . . Regen/Repaired (Parts) 188 | . . . . . . 188 Core Remaining (%) 88 | 100 . . . 77 . . Volleys Fired 67 | 4 2 . 3 4 12 42 Largest 2 | 2 2 . 1 1 1 2 Hottest 100 | 70 70 . 30 100 100 100 Shots Fired 107 | 8 4 . 3 4 12 76 Gun 82 | 8 4 . . . . 70 Cannon 20 | . . . . 4 12 4 Launcher 3 | . . . 3 . . . Special 2 | . . . . . . 2 Kinetic 58 | 4 2 . . . . 52 Thermal 44 | 4 2 . . 4 12 22 Explosive 3 | . . . 3 . . . Electromagnetic . | . . . . . . . Robot Hit Streak 18 | 3 3 . 1 2 3 18 Robot Miss Streak 4 | 2 3 . 4 1 2 4 Penetration Max 1 | . . . . . . 1 Secondary Targets 2 | . . . . . . 2 Max Gunslinging Chain 1 | . . . . . . 1 Shots Hit Robots 67 | 5 1 . 1 2 5 53 Core Hits 46 | 1 . . 3 2 11 29 Critical Kills 2 | . . . . 1 . 1 Critical Parts Destroyed 1 | . . . . . . 1 Critical Strikes 3 | . . . . 1 . 2 Meltdown 1 | . . . . 1 . . Destroy 2 | . . . . . . 2 Melee Attacks . | . . . . . . . Impact . | . . . . . . . Slashing . | . . . . . . . Piercing . | . . . . . . . Sneak Attacks . | . . . . . . . Combat Hostiles . | . . . . . . . Follow-up Attacks . | . . . . . . . Damage Inflicted 4256 | 58 13 . 90 402 2013 1680 Guns 1113 | 58 13 . . . . 1042 Cannons 1002 | . . . . 201 669 132 Explosions 2141 | . . . 90 201 1344 506 Melee . | . . . . . . . Ramming . | . . . . . . . Kinetic 907 | 22 . . . . . 885 Thermal 3259 | 36 13 . . 402 2013 795 Explosive 90 | . . . 90 . . . Electromagnetic . | . . . . . . . Impact . | . . . . . . . Slashing . | . . . . . . . Piercing . | . . . . . . . Highest Corruption . | . . . . . . . Average Corruption . | . . . . . . . Corruption Purged . | . . . . . . . Corruption Blocked . | . . . . . . . Overload Shots . | . . . . . . . Overflow Damage 387 | . . . 10 78 271 28 Projectiles 320 | . . . . 78 214 28 Explosions 67 | . . . 10 . 57 . Melee . | . . . . . . . Knockbacks . | . . . . . . . Impact . | . . . . . . . Kinetic . | . . . . . . . Secondary . | . . . . . . . Self-Inflicted Damage 331 | . . . . . 176 155 Shots 5 | . . . . . 3 2 Rammed . | . . . . . . . Targets Rammed . | . . . . . . . Kicked . | . . . . . . . Crushed . | . . . . . . . Highest Temperature 64 | 36 18 . . 64 31 16 Average Temperature 20 | 19 10 . . 29 17 9 Received Heat Transfer 540 | . . . . 36 216 288 Siege Activations . | . . . . . . . Martial Activations . | . . . . . . . Shielding Activations . | . . . . . . . Robots Disrupted . | . . . . . . . Combat Hostiles . | . . . . . . . Robots Corrupted . | . . . . . . . Combat Hostiles . | . . . . . . . Parts Fried . | . . . . . . . Impact Corruptions . | . . . . . . . Robots Melted 1 | . . . . 1 . . Combat Hostiles 1 | . . . . 1 . . Parts Melted 6 | . . . . 1 3 2 Heat Transferred 3231 | 111 37 . . 400 1780 903 Parts Sabotaged . | . . . . . . . Parts Stolen . | . . . . . . . Parts Stripped . | . . . . . . . Power Chain Reactions . | . . . . . . . Alert | -11 -10 -10 -10 -9 -8 -8 ------- Run | Yrd Mat Min Exi Min Mat Gar Maximum Alert Level 3 | . . . . . 1 3 Low Security (%) 64 | 100 100 100 . 100 83 36 Level 1 8 | . . . . . 16 11 Level 2 12 | . . . . . . 23 Level 3 14 | . . . . . . 28 Level 4 . | . . . . . . . Level 5 . | . . . . . . . High Security . | . . . . . . . Max Security . | . . . . . . . Peak Influence 1051 | 5 6 . . 91 234 1051 Initial 59 | . . . . . . 59 Average 244 | . . . . 26 67 450 Influence Increases 1661 | 5 6 . . 101 460 1089 Destroy 0b10 Robot/C 720 | . . . . 60 200 460 Destroy 0b10 Robot/NC 35 | 5 . . . 5 25 . Destroy Leader 74 | . . . . 10 54 10 Allied During Kill 47 | . . . . . 35 12 Successful Hack 13 | . 6 . . . . 7 Disable Machine 60 | . . . . . 45 15 Anti-Garrison Action 500 | . . . . . . 500 Destroy Structure 197 | . . . . 26 101 70 Lose Combat Pursuer 15 | . . . . . . 15 Influence Decreases 613 | 5 6 . . 101 368 133 Entered New Map 33 | . . . . . . 33 Time Decay 226 | 5 6 . . 101 114 . Lost Part 90 | . . . . . 20 70 Lost Ally 70 | . . . . . 40 30 Purge Threat 194 | . . . . . 194 . Squads Dispatched 2 | . 1 . . . 1 . Investigation 1 | . . . . . 1 . Extermination . | . . . . . . . Reinforcement 1 | . 1 . . . . . Assault . | . . . . . . . Garrison . | . . . . . . . Intercept . | . . . . . . . Searches Triggered . | . . . . . . . Construction Impeded . | . . . . . . . Haulers Reinforced . | . . . . . . . Active Scanning Responses . | . . . . . . . Cargo Convoy Interrupts . | . . . . . . . Stealth | -11 -10 -10 -10 -9 -8 -8 --------- Run | Yrd Mat Min Exi Min Mat Gar Distress Signals 3 | . . . . . 3 . Communications Jammed . | . . . . . . . Distress Signals . | . . . . . . . Times Spotted 48 | . 1 . 6 3 14 24 Peak Tracking Total 9 | . 1 . 9 3 6 6 Tactical Retreats 1 | . . . . . . 1 Traps | -11 -10 -10 -10 -9 -8 -8 ------- Run | Yrd Mat Min Exi Min Mat Gar Traps Triggered 5 | . . . . . . 5 Indirectly . | . . . . . . . Trap Hack Attempts . | . . . . . . . Triggered . | . . . . . . . Disarmed . | . . . . . . . Reprogrammed . | . . . . . . . Reused . | . . . . . . . Traps Extracted . | . . . . . . . Installed . | . . . . . . . Triggered . | . . . . . . . Machines | -11 -10 -10 -10 -9 -8 -8 ---------- Run | Yrd Mat Min Exi Min Mat Gar Machines Disabled 6 | . . . 1 . 3 2 Max in Single Turn 1 | . . . 1 . 1 1 Machines Repaired . | . . . . . . . Machines Dismantled . | . . . . . . . Machines Sabotaged . | . . . . . . . Overloaded Fab Kills . | . . . . . . . Hacking | -11 -10 -10 -10 -9 -8 -8 --------- Run | Yrd Mat Min Exi Min Mat Gar Machines Accessed 7 | . 1 . 1 . 2 3 Terminals 5 | . 1 . . . 1 3 Fabricators . | . . . . . . . Repair Stations . | . . . . . . . Recycling Units . | . . . . . . . Scanalyzers . | . . . . . . . Garrison Access 1 | . . . . . 1 . Total Hacks 12 | . 2 . 1 . 5 4 Successful 8 | . 2 . 1 . 4 1 Failed 4 | . . . . . 1 3 Catastrophic 2 | . . . . . . 2 Database Lockouts . | . . . . . . . Manual 3 | . 2 . 1 . . . Terminals 10 | . 2 . . . 4 4 Fabricators . | . . . . . . . Repair Stations . | . . . . . . . Recycling Units . | . . . . . . . Scanalyzers . | . . . . . . . Garrison Access 1 | . . . . . 1 . Terminal Hacks 7 | . 2 . 1 . 3 1 Robot Analysis 2 | . 2 . . . . . Open Door 1 | . . . . . . 1 Unreport Threat 2 | . . . . . 2 . Zone Layout 1 | . . . . . 1 . Proto ID Catalog 1 | . . . 1 . . . Fabricator Hacks . | . . . . . . . Repair Station Hacks . | . . . . . . . Recycling Unit Hacks . | . . . . . . . Scanalyzer . | . . . . . . . Garrison Access Hacks 1 | . . . . . 1 . Unlock Access 1 | . . . . . 1 . Unauthorized Hacks . | . . . . . . . Terminals . | . . . . . . . Fabricators . | . . . . . . . Repair Stations . | . . . . . . . Recycling Units . | . . . . . . . Scanalyzers . | . . . . . . . Garrison Access . | . . . . . . . Data Cores Recovered . | . . . . . . . Used . | . . . . . . . Hacking Detections 4 | . 1 . . . 1 2 Full Trace Events . | . . . . . . . Feedback Events . | . . . . . . . Feedback Blocked . | . . . . . . . Robot Schematics Acquired . | . . . . . . . Robots Built . | . . . . . . . Authchips . | . . . . . . . Time . | . . . . . . . Total Robot Build Rating . | . . . . . . . Part Schematics Acquired . | . . . . . . . Parts Built . | . . . . . . . Authchips . | . . . . . . . Time . | . . . . . . . Total Part Build Rating . | . . . . . . . Part Studies Acquired . | . . . . . . . Parts Repaired . | . . . . . . . Time . | . . . . . . . Parts Recycled . | . . . . . . . Recycled Matter . | . . . . . . . Retrieved Matter . | . . . . . . . Retrieved Components . | . . . . . . . Parts Scanalyzed . | . . . . . . . Part Schematics Acquired . | . . . . . . . Parts Damaged . | . . . . . . . Bothacking | -11 -10 -10 -10 -9 -8 -8 ------------ Run | Yrd Mat Min Exi Min Mat Gar Used RIF Installer 1 | . . . . . . 1 Robots Hacked 1 | . . . . . . 1 Non-combat 1 | . . . . . . 1 Combat . | . . . . . . . Robot Hacks Applied 2 | . . . . . . 2 release_backups 1 | . . . . . . 1 formatsys_low 1 | . . . . . . 1 Relay Couplers Released 3 | . . . . . . 3 Programmers 3 | . . . . . . 3 Attached 1 | . . . . . . 1 Fabnet Peak Effective % . | . . . . . . . Robots Rewired 1 | . . . . . . 1 Allies Hacked . | . . . . . . . Hacks Repelled . | . . . . . . . Allies | -11 -10 -10 -10 -9 -8 -8 -------- Run | Yrd Mat Min Exi Min Mat Gar Total Allies 5 | . . . . 3 . 2 Largest Group 3 | . . . . 3 3 2 Highest-Rated Group 41 | . . . . 40 40 41 Highest-Rated Ally 21 | . . . . 16 16 21 Total Orders 1 | . . . . . . 1 AID 1 | . . . . . . 1 Ally Attacks 51 | . . . . . 45 6 Total Damage 642 | . . . . . 484 158 Kills 7 | . . . . . 4 3 Allies Corrupted . | . . . . . . . Allies Melted . | . . . . . . . Intel | -11 -10 -10 -10 -9 -8 -8 ------- Run | Yrd Mat Min Exi Min Mat Gar Active Infowar (turns) 1843 | 22 129 223 335 381 258 495 Optics 573 | . . . . . 78 495 Seismic 1270 | 22 129 223 335 381 180 . Robot Analysis Total 2 | . 2 . . . . . Derelict Logs Recovered 3 | . . 1 . 2 . . Drone Launches . | . . . . . . . Drone Recoveries . | . . . . . . . Exploration | -11 -10 -10 -10 -9 -8 -8 ------------- Run | Yrd Mat Min Exi Min Mat Gar Turns Passed 2982 | 117 129 223 335 381 450 1347 Spaces Moved 1614 | 62 77 134 205 206 229 701 Core 13 | 13 . . . . . . Treads 1601 | 49 77 134 205 206 229 701 Legs . | . . . . . . . Wheels . | . . . . . . . Hover . | . . . . . . . Flight . | . . . . . . . Fastest Speed 50 | 50 160 160 160 160 158 155 Average Speed 158 | 136 160 160 160 160 158 158 Slowest Speed 240 | 160 160 160 160 160 163 240 Overloaded Moves . | . . . . . . . Propulsion Burnouts . | . . . . . . . Robots Hopped . | . . . . . . . Potential Cave-ins . | . . . . . . . Cave-ins Triggered . | . . . . . . . Exploration Rate (%) 41 | 4 28 33 59 52 30 84 Regions Visited 6 Branch Regions 3 Pre-discovered Areas 1 | . . 1 . . . . Known Exits Taken 1 | . . . . . 1 . Unknown Exits Taken 5 | 1 1 1 1 1 . . Scrap Searched 1 | . . . . 1 . . Spaces Dug . | . . . . . . . Terrain Destroyed 238 | . . . 9 35 116 78 Melee . | . . . . . . . Projectile 9 | . . . . 2 4 3 AOE 229 | . . . 9 33 112 75 Terrain Rammed . | . . . . . . . Walls Destroyed . | . . . . . . . Machines Disabled . | . . . . . . . Actions | -11 -10 -10 -10 -9 -8 -8 --------- Run | Yrd Mat Min Exi Min Mat Gar Total 1885 | 83 79 143 209 246 276 849 Wait 143 | 9 1 7 . 35 22 69 Move 1609 | 61 76 133 204 205 229 701 Hop . | . . . . . . . Pick Up 21 | 2 . 3 1 . 4 11 Fast Attach 13 | 6 . . . . 5 2 Attach 8 | 1 . . . 1 1 5 Detach 1 | . . . . 1 . . Swap 10 | . . . 1 . 2 7 Drop 5 | . . . . . 1 4 Fire 67 | 4 2 . 3 4 12 42 Melee . | . . . . . . . Ram . | . . . . . . . Kick . | . . . . . . . Crush . | . . . . . . . Escape Stasis . | . . . . . . . Rewire 8 | . . . . . . 8 Trap . | . . . . . . . Miscellaneous . | . . . . . . . Route ------- -11/Scrapyard -10/Materials -10/Mines (discovered 3 exits: [*Mat] / *Exi / [*Sub]) -10/Exiles -9/Mines -8/Materials -8/Garrison (discovered 3 exits: [*Mat x3]) History --------- Turn | Location | Event 11 | -11/Scrapyard | Discovered new exit (range 16) 118 | -11/Scrapyard | Entered Materials 223 | -10/Materials | Discovered new exit (range 11) 247 | -10/Materials | Entered Mines 309 | -10/Mines | Build established: Mutant 324 | -10/Mines | Learned location of Storage (-7) 332 | -10/Mines | YI-UF0 nonchalantly dropped a Grenade Launcher on the ground 392 | -10/Mines | Discovered new exit (range 3) 421 | -10/Mines | Discovered new exit (range 3) 462 | -10/Mines | Deemed a non-threat by the Exiles lab entrance 464 | -10/Mines | Discovered new exit (range 5) 470 | -10/Mines | Entered Exiles 514 | -10/Exiles | Met 8R-AWN 538 | -10/Exiles | Met EX-HEX 581 | -10/Exiles | Met EX-BIN 600 | -10/Exiles | Aligned with FarCom system 602 | -10/Exiles | Given EX-Vault access code 638 | -10/Exiles | Opened EX-Vault 651 | -10/Exiles | Found YOLO Cannon 684 | -10/Exiles | Warned to stay clear of 0b10 Research branches 731 | -10/Exiles | Met EX-DEC 751 | -10/Exiles | Attacked by the Exiles 793 | -10/Exiles | Discovered new exit (range 10) 805 | -10/Exiles | Left Exiles lab with YOLO Cannon 805 | -10/Exiles | Entered Mines 932 | -9/Mines | Learned 2 Materials zone layouts 1000 | -9/Mines | Assisted by bots powering up and referring to "LRC-V3" 1158 | -9/Mines | Learned Materials stockpile data 1162 | -9/Mines | Discovered new exit (range 4) 1186 | -9/Mines | Entered Materials 1186 | -8/Materials | Accompanied by 3 allies 1186 | -8/Materials | Evolved 4 slots: Propulsion x2, Utility x2 1624 | -8/Materials | Lost 3 allies 1636 | -8/Materials | Identified exit to Garrison 1636 | -8/Materials | Entered Garrison 1636 | -8/Garrison | Warlord forces raided the area 1688 | -8/Garrison | Triggered checkpoint 1724 | -8/Garrison | Triggered checkpoint 1872 | -8/Garrison | Discovered new exit (range 19) 1906 | -8/Garrison | Installed Relay Interface Framework 1910 | -8/Garrison | Triggered checkpoint 1914 | -8/Garrison | Triggered checkpoint 1965 | -8/Garrison | Warlord forces retreated 1976 | -8/Garrison | Triggered checkpoint 2115 | -8/Garrison | Discovered new exit (range 16) 2131 | -8/Garrison | YOLO Cannon suddenly exploded 2132 | -8/Garrison | Core integrity fell below 50% 2162 | -8/Garrison | Lost 4 parts (1p2u1w) 2463 | -8/Garrison | Build established: Scavenger-Mutant 2556 | -8/Garrison | Triggered checkpoint 2572 | -8/Garrison | Triggered checkpoint 2592 | -8/Garrison | Triggered checkpoint 2778 | -8/Garrison | Discovered new exit (range 13) 2824 | -8/Garrison | Triggered checkpoint 2834 | -8/Garrison | Build established: Mutant 2948 | -8/Garrison | Core integrity fell below 20% 2983 | -8/Garrison | Self-destructed Last Messages --------------- 02903_ Smith 3a suffers critical hit (Burn). 02919_ Smith 3a destroyed. 02919_ Slug penetrates Y-45 Defender. 02919_ Y-45 Defender destroyed. 02919_ Slug penetrates Wall. 02924_ Acquired 8 matter. 02960_ Slug penetrates Y-45 Defender. 02960_ Y-45 Defender destroyed. 02963_ Slug penetrates Y-45 Defender. 02963_ RIF Installer disabled. 02966_ Slug penetrates Y-45 Defender. 02966_ Particle Charger destroyed. 02966_ Critical hit (Burn: +37). 02969_ Slug penetrates Y-45 Defender. 02969_ Y-45 Defender destroyed. 02972_ Acquired 27 matter. 02975_ Lgt. Nuclear Core destroyed. 02980_ Connecting with Door Terminal... >>Open(Door) Sealed Heavy Doors opened. Map ----- +----------------------------------------------------+ | | | | | | | | | | | ?????????????????????????????????????????????????? | | ?????????????????????????????????????????????????? | | ?????????????????????????????????????????????????? | | ??????????????????????????????#?????????????###### | | ?????????????????????????????" "????????????#"""" | | ?????????????????????????????" "????????????#" | | ?????????????????????????????" "????????????#"" | | ?????????????????????????????" "????????????#" | | ?????????????????????????????? ?????????????#"" | | ?????????????????????????????# #????????????#""[=[ | | ?????????????????????????????# #????????????#" *== | | ?????????????????????????????# #????????????#""" ! | | ?????????????????????????????# #????????????#"[*[= | | ?????????????????????????????# #????????????#"" =! | | ?????????????????????????????# #????????????#"" | | ???????????????????????####### ###??????????#" | | ???????????????????????# [##+#"#???####???#""" | | ???????????????????????# !##!*"#???#""#???#### | | ???????????????????????#T =!!%=="#???#T #??????# # | | ???????????????????????## ###[%"#???#" #??????# # | | ???????????????????????#g@ #?#[#"#???## #????### # | | ???????????????????????#l #?# ###???## ##??## " " | | ???????????????????????#####?# #?????# [[#??# " | | ?????????????????????????????# #?????# [#??# " | | ?????????????????????????????# #?????# [#??# " " | | ???????????????????????????### #?????#[ [#??## " " | | ???????????????????????##### ######## ##???### " | | ???????????????????????# " ![%!%!* #??????# # | | ???????????????????????# ### ##########??????# # | | ???????????????????????????### #????# #????????# # | | ?????????????????????????????#=#????# #????????# # | | ???????????????????????#+#####!###### #????????# # | | ???????????# < #########[%!% *!%%= #????????# # | | ???????????# =!######=#### #????????# # | | ???????????# !=#????###??# #????????# # | | ????????????############ #?????????# #????????# # | | ???????###########?????# #?????????# #????????# | | ??????#""""""""""#?????# #?????????# #????##### # | | ??????#"""!!!!!!"#?????# #?????????# ????# # | | ??????#"" #?????# #?????????# #????# ### # | | ??????#"! ####### #?????????# #?######?# # | | ??????#"! #?????????# #?#%!! #?# # | | ??????#"! #????????###### ! ##### | | ??????#"! ####### ########## ! % % | | ??????#"" #?????# %=* | +----------------------------------------------------+ Best States ------------- Heat Dissipation 59 Energy Generation 15 Energy Capacity 160 Matter Stores 300 Matter Capacity 300 Sight Range 20 Terrain Scan Density 10 Armor Coverage 150 Evasion (%) 50 Recoil Reduction 4 Particle Charging 15 Relay Coupler Types 1 Relay Coupler Value 12 Item Schematics ----------------- None Robot Schematics ------------------ None Fabricated ------------ Nothing Repaired ---------- Nothing Studied --------- None Alien Tech Used ----------------- None Achievements -------------- None Challenges ------------ None Game ------ Seed TeslaImprovedCyclogen Manual? 0 Play Time 00:20:24 Cumulative 324.3 hours Start 2026.09.23 @ 18:20:54 End 2026.09.23 @ 19:15:35 Sessions 3 Manual Loads 0 Difficulty Rogue Special Mode None Game No. 404 Rogue 404 Adventurer 0 Explorer 0 Win Type - Total 11 Types 8/0/1/1/0/0/0/1/0/0 Lore% 82 Gallery% 70 Achievement% 60 Wizard Run 0 Options --------- Layout 2 ASCII 0 Keyboard 0 Movement Mouse Keybinds 0 Fullscreen 1 Font 16/SmallcapsGlow Map View 50x49 Zoom Use 21% Tactical HUD 1 Map Filters NONE Filters NONE Steam SD RUN: ffaf476b-a98c-4cc5-9df8-b161c489e7ca